bitfinex/quotes_ETHUSD_20211001
["timestamp","ask_amount","ask_price","bid_price","bid_amount"]
[1633120035657,0.71096015,3287.8,3287.5,0.003]
[1633120036259,5.27370015,3287.8,3287.5,0.003]
[1633120036657,0.71096015,3287.8,3287.5,0.003]
[1633120037060,1.7714648,3287.8,3287.5,0.003]
[1633120037261,1.7714648,3287.8,3286.8,0.003]
[1633120037262,1.79128312,3287.1,3286.8,0.003]
[1633120037459,4.83380312,3287.1,3286.8,0.003]
[1633120037660,4.83380312,3287.1,3286.7,0.003]
[1633120037859,0.181,3287.0,3286.9,0.27442193]
[1633120038258,6.71349287,3287.0,3286.9,0.27742193]
[1633120039657,7.14948458,3287.0,3286.9,0.003]
[1633120039858,7.16557095,3287.0,3286.9,0.003]
[1633120040059,7.16557095,3287.0,3286.7,0.003]
[1633120041060,7.16557095,3287.0,3286.6,0.73085619]
[1633120042461,0.047,3286.6,3285.4,0.006]
[1633120042662,0.184,3286.5,3285.4,0.006]
[1633120042863,0.61999171,3286.5,3285.4,0.006]
[1633120043062,0.61999171,3286.5,3285.4,0.30262051]
[1633120043259,0.61999171,3286.5,3285.7,0.89280964]
[1633120043460,0.89714889,3286.4,3285.7,0.95834795]
[1633120043659,0.61999171,3286.5,3285.7,0.95834795]
[1633120043660,0.181,3286.3,3285.7,0.95834795]
[1633120044460,0.181,3286.3,3285.8,4.56422]
[1633120044859,0.181,3286.3,3285.9,1.10259675]
[1633120045061,0.181,3286.3,3285.8,4.56422]
[1633120045260,0.19709053,3286.3,3285.7,0.95834795]
[1633120045939,0.19709053,3286.3,3285.5,0.003]
[1633120046062,1.16833822,3286.0,3285.5,0.003]
[1633120046261,0.43599171,3286.2,3285.5,0.003]
[1633120046661,0.43599171,3286.2,3285.5,0.29964308]
[1633120046860,0.43599171,3286.2,3285.7,0.87490611]
[1633120047061,0.43599171,3286.2,3285.5,0.003]
[1633120047460,0.43599171,3286.2,3285.5,0.299607]
[1633120048061,0.43599171,3286.2,3285.7,0.95617534]
[1633120048862,0.43599171,3286.2,3285.8,0.27475405]
[1633120050063,0.90672696,3286.0,3285.8,0.27475405]
[1633120050263,0.90672696,3286.0,3285.5,1.01272882]
[1633120050264,1.60061732,3285.4,3285.3,0.006]
[1633120050567,6.80871018,3285.4,3285.3,0.006]
[1633120050765,4.53733952,3285.4,3285.3,0.006]
[1633120050964,0.181,3285.7,3285.5,1.2342583]
[1633120051364,0.43599171,3285.9,3285.5,1.2342583]
[1633120051763,0.43599171,3285.9,3285.6,1.70478919]
[1633120051963,0.43599171,3285.9,3285.7,0.96678078]
[1633120052165,0.43599171,3285.9,3285.6,1.70478919]
[1633120053064,0.73208635,3285.8,3285.6,1.70478919]
[1633120053262,0.43599171,3285.9,3285.6,1.70478919]
[1633120053466,3.04675,3286.0,3285.6,1.70478919]
[1633120053467,0.43599171,3285.7,3285.6,1.70478919]
[1633120054267,0.43599171,3285.7,3285.6,1.91704898]
[1633120055662,0.43599171,3285.7,3285.6,1.86704898]
[1633120055865,0.003,3286.0,3285.7,8.7]
[1633120056067,0.003,3286.0,3285.8,0.055188]
[1633120056265,0.003,3286.0,3285.8,0.236188]
[1633120056868,0.003,3286.0,3285.9,0.88475461]
[1633120057066,0.003,3286.0,3285.8,0.055188]
[1633120057467,0.003,3286.0,3285.5,1.2342583]
[1633120057667,0.181,3285.9,3285.5,1.2342583]
[1633120059168,0.96084241,3285.9,3285.5,1.2342583]
[1633120059369,4.56587,3285.8,3285.5,1.2342583]
[1633120059765,4.56587,3285.8,3285.6,0.16224318]
[1633120061766,0.09986909,3285.7,3285.5,1.2342583]
[1633120061969,4.56613,3285.6,3285.5,1.2342583]
[1633120064369,4.77186845,3285.6,3285.3,0.006]
[1633120064571,4.74713,3285.6,3285.3,0.006]
[1633120064768,6.03413,3285.6,3285.3,0.006]
[1633120065167,0.83179754,3285.4,3285.3,0.006]
[1633120065369,5.57940754,3285.4,3285.3,0.006]
[1633120065767,5.57940754,3285.4,3285.2,0.006]
[1633120066768,8.62444754,3285.4,3285.2,0.006]
[1633120067172,0.09977127,3285.3,3285.2,0.006]
[1633120067368,0.28077127,3285.3,3285.2,0.006]
[1633120069175,0.09977127,3285.3,3285.2,0.006]
[1633120070632,4.56582,3285.4,3285.2,0.006]
[1633120070832,4.56582,3285.4,3285.2,0.19339272]
[1633120072442,4.56582,3285.4,3285.2,0.14339272]
[1633120072636,4.56582,3285.4,3285.1,0.006]
[1633120072837,0.09977141,3285.3,3285.1,0.006]
[1633120074240,4.66573141,3285.3,3285.2,0.00105094]
[1633120075239,0.09977141,3285.3,3284.9,7.08607476]
[1633120075440,0.09977141,3285.3,3284.9,7.03607476]
[1633120076242,0.184,3285.5,3285.0,0.16544258]
[1633120078243,0.1217593,3285.4,3284.9,7.03607476]
[1633120079443,0.81830832,3285.2,3284.9,7.03607476]
[1633120079843,0.1217593,3285.4,3284.9,7.03607476]
[1633120080249,0.181,3285.3,3284.9,7.03607476]
[1633120080445,4.56706,3285.1,3284.9,7.03607476]
[1633120080645,0.181,3285.0,3284.9,7.03607476]
[1633120081847,0.181,3285.0,3284.9,7.2015672]
[1633120082046,0.181,3285.0,3284.9,7.1515672]
[1633120083747,0.181,3285.0,3284.9,6.98607476]
[1633120083948,0.30268595,3285.0,3284.9,6.98607476]
[1633120084747,0.30268595,3285.0,3284.9,6.98704752]
[1633120085948,0.48046093,3285.0,3284.9,6.98704752]
[1633120086348,0.30268595,3285.0,3284.9,6.98704752]
[1633120087347,0.181,3285.0,3284.9,7.15253996]
[1633120088349,0.181,3285.0,3284.9,6.15253996]
[1633120089148,0.181,3285.0,3284.9,5.98704752]
[1633120089350,0.30268609,3285.0,3284.9,5.98704752]
[1633120092750,0.181,3285.0,3284.9,6.15253996]
[1633120094751,0.30268623,3285.0,3284.9,5.98704752]
[1633120098156,0.181,3285.0,3284.9,5.98704752]
[1633120098355,0.181,3285.0,3284.9,6.15253996]
[1633120100154,0.181,3285.0,3284.9,5.98704752]
[1633120100356,0.30268637,3285.0,3284.9,5.98704752]
[1633120101555,0.05268637,3285.0,3284.9,5.98704752]
[1633120102158,7.95,3284.9,3284.7,0.006]
[1633120102357,17.64109256,3284.9,3284.7,0.006]
[1633120102557,12.75,3284.8,3284.1,0.006]
[1633120102760,17.29858713,3284.4,3284.1,0.006]
[1633120102957,8.15,3284.3,3283.7,0.66138978]
[1633120103160,3.04567,3284.1,3283.7,0.66138978]
[1633120103357,1.0911,3284.0,3283.7,0.66138978]
[1633120103560,0.93357558,3283.9,3283.7,0.66138978]
[1633120103757,1.0911,3283.8,3283.7,0.66138978]
[1633120105758,1.17799241,3283.8,3283.7,0.66232996]
[1633120105959,1.17799241,3283.8,3283.7,0.61232996]
[1633120106760,1.17799241,3283.8,3283.7,0.56232996]
[1633120108961,2.43016739,3283.8,3283.7,0.56232996]
[1633120109161,34.10480509,3283.8,3283.7,0.56232996]
[1633120109360,2.20480509,3283.8,3283.7,0.76272145]
[1633120109962,1.13040509,3283.8,3283.7,0.76272145]
[1633120110161,1.0911,3283.8,3283.7,0.76272145]
[1633120110961,1.17799254,3283.8,3283.7,0.56232996]
[1633120113367,0.99699254,3283.8,3283.7,0.56232996]
[1633120114767,0.9101,3283.8,3283.7,0.76272145]
[1633120116572,0.99699268,3283.8,3283.7,0.56232996]
[1633120119469,1.71781509,3283.8,3283.7,0.56232996]
[1633120119670,0.99699268,3283.8,3283.7,0.56232996]
[1633120120270,0.9101,3283.8,3283.7,0.76272145]
[1633120121271,2.09204182,3283.8,3283.7,0.76272145]
[1633120121470,0.9101,3283.8,3283.7,0.76272145]
[1633120122071,0.99699282,3283.8,3283.7,0.56232996]
[1633120122473,1.90156962,3283.8,3283.7,0.56232996]
[1633120122873,0.99699282,3283.8,3283.7,0.56232996]
[1633120124076,0.99699282,3283.8,3283.7,5.12974996]
[1633120124280,0.99699282,3283.8,3283.7,5.42996384]
[1633120125075,0.99699282,3283.8,3283.7,6.72396384]
[1633120125675,0.9101,3283.8,3283.7,2.15654384]
[1633120125875,0.9101,3283.8,3283.7,2.35693533]
[1633120127876,0.99699296,3283.8,3283.7,2.15654384]
[1633120128277,0.99699296,3283.8,3283.7,0.86254384]
[1633120128478,0.99699296,3283.8,3283.7,0.56232996]
[1633120128677,0.99699296,3283.8,3283.7,0.86277796]
[1633120130678,0.08689296,3283.8,3283.7,0.86277796]
[1633120130881,0.99699296,3283.8,3283.7,0.86277796]
[1633120131280,0.9101,3283.8,3283.7,1.06316945]
[1633120133282,0.99699311,3283.8,3283.7,0.86277796]
[1633120136683,0.9101,3283.8,3283.7,0.86277796]
[1633120136883,0.9101,3283.8,3283.7,1.06316945]
[1633120138685,0.9101,3283.8,3283.7,0.86277796]
[1633120138883,0.99699325,3283.8,3283.7,0.86277796]
[1633120140684,0.99699325,3283.8,3283.7,2.28327796]
[1633120141087,0.99699325,3283.8,3283.7,6.85063796]
[1633120142289,0.9101,3283.8,3283.7,7.05102945]
[1633120142493,4.57043,3284.5,3283.8,10.99489325]
[1633120142494,0.003,3284.5,3283.8,10.99489325]
[1633120142691,0.003,3284.5,3284.1,0.067073]
[1633120142889,0.003,3284.5,3284.2,0.47241313]
[1633120143090,0.003,3284.5,3284.3,1.08714096]
[1633120143290,0.003,3284.5,3284.4,13.17232865]
[1633120143490,0.003,3284.5,3284.4,17.65166715]
[1633120143689,0.003,3284.5,3284.4,6.24566715]
[1633120143889,0.003,3284.5,3284.4,24.00566715]
[1633120144091,0.003,3285.0,3284.4,24.00566715]
[1633120144291,0.003,3285.5,3284.9,12.779913]
[1633120144498,0.003,3286.0,3285.5,0.29402053]
[1633120144795,0.003,3286.0,3285.9,12.779913]
[1633120144996,2.46,3286.7,3285.9,35.52345032]
[1633120145193,2.46,3286.7,3286.4,1.66415372]
[1633120145397,0.003,3287.0,3286.6,5.54268905]
[1633120145398,2.46,3286.8,3286.6,5.54268905]
[1633120145594,0.003,3287.0,3286.6,5.54268905]
[1633120145595,0.003,3287.0,3286.9,0.079913]
[1633120145791,0.003,3287.0,3286.9,0.260913]
[1633120145991,0.003,3287.0,3286.9,1.527854]
[1633120146191,0.003,3287.0,3286.9,0.233854]
[1633120146394,0.003,3287.0,3286.9,18.30687941]
[1633120146594,0.003,3287.0,3286.9,18.02485031]
[1633120146790,0.003,3287.0,3286.9,18.3027868]
[1633120146992,0.003,3287.0,3286.9,18.02485031]
[1633120147190,0.003,3287.0,3286.9,19.31885031]
[1633120147390,2.46,3287.3,3287.1,1.75854347]
[1633120147595,2.46,3287.3,3287.2,0.181]
[1633120147993,2.46,3287.3,3287.2,6.2682]
[1633120148192,2.46,3287.3,3287.2,25.59956918]
[1633120148592,2.46,3287.3,3287.2,33.09265517]
[1633120148993,2.46,3287.3,3287.2,32.81528599]
[1633120149593,0.006,3287.5,3287.2,32.81528599]
[1633120149793,0.006,3287.5,3287.4,0.070209]
[1633120149994,0.006,3287.5,3287.4,0.251209]
[1633120150200,0.75653474,3288.2,3287.4,0.251209]
[1633120150394,1.07696891,3288.1,3287.5,0.003]
[1633120150594,1.07696891,3288.1,3287.6,0.181]
[1633120150794,2.46,3287.9,3287.6,0.181]
[1633120151793,2.46,3287.9,3287.7,1.0089134]
[1633120152393,2.46,3287.9,3287.6,0.181]
[1633120152798,1.07696891,3288.1,3287.6,0.181]
[1633120153396,4.56204,3287.9,3287.7,0.19902927]
[1633120154297,4.56204,3287.9,3287.3,0.003]
[1633120154298,1.86386097,3287.7,3287.3,0.003]
[1633120155300,1.17766996,3287.6,3287.3,0.003]
[1633120155498,1.10403262,3287.5,3287.3,0.003]
[1633120156099,6.0871,3287.2,3287.1,0.84638987]
[1633120157160,10.65123,3287.2,3287.1,0.84638987]
[1633120157764,6.0871,3287.2,3287.1,0.84638987]
[1633120158764,10.65082,3287.2,3287.1,0.84638987]
[1633120158962,10.65082,3287.2,3287.1,0.94613683]
[1633120159563,6.0871,3287.2,3287.1,0.94613683]
[1633120159972,6.0871,3287.2,3287.1,1.00128583]
[1633120160364,6.0871,3287.2,3287.1,1.18228583]
[1633120160765,6.0871,3287.2,3287.1,1.08253887]
[1633120160965,6.27434119,3287.2,3287.1,1.08253887]
[1633120161766,6.27434119,3287.2,3287.1,1.02738987]
[1633120162166,6.27434119,3287.2,3287.1,1.77441681]
[1633120162368,6.22434119,3287.2,3287.1,1.77441681]
[1633120162567,6.22434119,3287.2,3287.1,1.02738987]
[1633120162766,6.21385296,3287.2,3287.1,1.02738987]
[1633120162966,7.10799386,3287.2,3287.1,1.02738987]
[1633120163171,6.21385296,3287.2,3287.1,1.02738987]
[1633120163565,6.21385296,3287.2,3287.1,0.84638987]
[1633120164167,11.6785598,3287.2,3287.1,0.84638987]
[1633120164366,11.6785598,3287.2,3287.1,0.94613683]
[1633120164568,11.6785598,3287.2,3286.5,0.006]
[1633120164569,1.60464291,3287.1,3286.5,0.006]
[1633120164966,1.60464291,3287.1,3285.9,0.009]
[1633120165168,1.76835655,3286.1,3285.9,0.009]
[1633120165671,1.76835655,3286.1,3285.7,0.009]
[1633120166071,0.181,3286.0,3285.2,0.012]
[1633120166271,4.56571,3285.6,3285.2,0.81515238]
[1633120166467,4.56571,3285.6,3285.2,0.012]
[1633120166468,1.13878178,3285.5,3285.2,0.012]
[1633120166668,1.13878178,3285.5,3285.3,0.012]
[1633120167467,5.70447178,3285.5,3285.3,0.012]
[1633120167869,5.731,3285.4,3285.3,0.012]
[1633120168069,0.181,3285.4,3285.3,0.012]
[1633120168268,0.181,3285.4,3285.2,0.012]
[1633120168470,6.2696399,3285.4,3285.2,0.012]
[1633120169269,4.56642,3285.3,3285.2,0.012]
[1633120169871,4.56642,3285.3,3285.2,0.0625046]
[1633120171669,4.56642,3285.3,3285.2,0.012]
[1633120171870,4.80306981,3285.3,3285.2,0.012]
[1633120172073,4.80306981,3285.3,3284.6,0.015]
[1633120172472,4.80306981,3285.3,3284.5,0.018]
[1633120172671,1.17886442,3284.9,3284.5,0.018]
[1633120172874,0.23664981,3285.3,3284.5,0.018]
[1633120173074,0.23664981,3285.3,3285.0,0.96330596]
[1633120173472,0.23664981,3285.3,3285.1,0.012]
[1633120175276,0.181,3285.4,3285.2,0.05052122]
[1633120175675,1.36833348,3285.4,3285.3,0.012]
[1633120177276,1.60500792,3285.4,3285.3,0.012]
[1633120177677,0.41767444,3285.4,3285.0,0.015]
[1633120178280,4.56703,3284.7,3284.0,0.021]
[1633120178479,0.23667444,3285.4,3284.4,0.052743]
[1633120178881,0.23667444,3285.4,3285.0,0.93959711]
[1633120179279,0.23667444,3285.4,3285.1,0.012]
[1633120179478,0.41767444,3285.4,3285.1,0.012]
[1633120179677,0.41767444,3285.4,3284.4,0.018]
[1633120180279,0.91981454,3285.0,3284.4,1.01808747]
[1633120180678,0.91981454,3285.0,3284.5,0.018]
[1633120180879,0.181,3285.4,3284.5,0.06868743]
[1633120181282,0.181,3285.4,3284.6,0.015]
[1633120182281,5.5662527,3285.1,3284.6,0.015]
[1633120182480,3.04455,3285.3,3284.6,0.015]
[1633120182681,0.97518031,3285.2,3284.6,0.84479942]
[1633120182881,0.23655209,3285.0,3284.6,0.84479942]
[1633120183081,0.23655209,3285.0,3284.7,0.015]
[1633120185283,0.23655209,3285.0,3284.6,0.82979942]
[1633120185284,0.23655209,3285.0,3284.6,0.79479942]
[1633120185483,0.23655209,3285.0,3284.6,0.69479942]
[1633120186284,0.90854441,3285.2,3284.7,0.05065419]
[1633120186688,5.51273158,3285.3,3284.7,0.05065419]
[1633120187683,0.75693522,3285.2,3284.7,0.05065419]
[1633120188283,5.5598242,3285.2,3284.6,0.69479942]
[1633120189288,0.9935242,3285.2,3284.6,0.69479942]
[1633120189884,0.23658898,3285.2,3284.6,0.69479942]
[1633120190684,0.23658898,3285.2,3284.6,5.26031942]
[1633120191085,0.23658898,3285.2,3284.9,1.294]
[1633120191284,0.23658898,3285.2,3284.7,0.057357]
[1633120191490,0.23658898,3285.2,3285.1,0.91514144]
[1633120191686,0.003,3285.5,3285.1,0.91514144]
[1633120192490,0.003,3285.5,3285.1,18.67514144]
[1633120192686,0.003,3285.5,3285.4,6.261624]
[1633120192887,0.003,3285.5,3285.4,0.242624]
[1633120193688,0.003,3285.5,3285.4,6.100574]
[1633120193888,0.23969935,3285.5,3285.4,0.242624]
[1633120194288,0.23969935,3285.5,3285.1,0.91514144]
[1633120194687,0.23969935,3285.5,3285.2,4.56475]
[1633120195090,0.23969935,3285.5,3285.1,0.91514144]
[1633120196290,0.23969935,3285.5,3285.2,4.56469]
[1633120197098,0.18969935,3285.5,3285.2,4.56469]
[1633120198691,0.017581,3285.4,3285.2,4.56469]
[1633120198892,0.017581,3285.4,3285.2,6.12977779]
[1633120199491,0.017581,3285.4,3285.2,4.56469]
[1633120199696,0.15728035,3285.5,3285.2,4.56469]
[1633120200492,0.15728035,3285.5,3285.1,18.67514144]
[1633120200692,0.15728035,3285.5,3285.2,4.56471]
[1633120200892,0.15728035,3285.5,3285.1,18.85614144]
[1633120201292,0.15728035,3285.5,3285.4,0.061612]
[1633120201958,0.15728035,3285.5,3285.4,4.626082]
[1633120202494,0.15728035,3285.5,3285.4,5.920082]
[1633120203292,0.15728035,3285.5,3285.4,4.626082]
[1633120205095,0.15728035,3285.5,3285.4,0.061612]
[1633120205794,0.15728035,3285.5,3285.2,17.76]
[1633120206595,0.15728035,3285.5,3285.3,4.56463]
[1633120207795,0.14679255,3285.5,3285.3,4.56463]
[1633120208595,0.14679255,3285.5,3285.3,22.32463]
[1633120208996,0.14679255,3285.5,3285.3,26.3348225]
[1633120209797,0.14679255,3285.5,3285.4,12.36242482]
[1633120209997,0.14679255,3285.5,3285.4,0.7554759]
[1633120210202,0.003,3286.0,3285.5,23.769]
[1633120210398,2.463,3286.5,3285.9,0.10479324]
[1633120210598,2.463,3286.5,3286.4,1.91050697]
[1633120210797,2.463,3286.5,3286.4,3.02565605]
[1633120210997,2.463,3286.5,3286.4,21.79565605]
[1633120211197,2.463,3286.5,3286.4,26.64152605]
[1633120211998,2.463,3286.5,3286.4,27.65152605]
[1633120212199,2.463,3286.5,3286.4,33.73792605]
[1633120212398,2.463,3286.5,3286.4,34.01914772]
[1633120212802,2.463,3286.5,3286.4,34.20014772]
[1633120214266,2.463,3286.5,3286.4,35.26403378]
[1633120214468,2.463,3286.5,3286.4,34.25403378]
[1633120214666,0.003,3286.5,3286.4,34.25413022]
[1633120216669,0.003,3286.5,3286.4,34.28467999]
[1633120217270,0.003,3286.5,3286.4,13.65513694]
[1633120217469,0.003,3286.5,3286.4,7.33128606]
[1633120218269,0.003,3286.5,3286.4,6.2674]
[1633120218469,0.003,3286.5,3286.4,7.616361]
[1633120218671,0.003,3286.5,3286.4,6.322361]
[1633120218871,0.003,3286.5,3286.4,6.172361]
[1633120219469,0.003,3286.5,3286.4,8.476361]
[1633120219670,0.003,3286.5,3286.4,8.75765855]
[1633120220070,0.003,3286.5,3286.4,26.236361]
[1633120220674,0.003,3286.5,3286.4,8.476361]
[1633120220871,0.003,3286.5,3286.4,6.172361]
[1633120221469,0.003,3286.5,3286.4,6.45358673]
[1633120221670,1.60464291,3287.1,3286.4,6.45358673]
[1633120221872,1.56064291,3287.1,3286.6,3.0415]
[1633120222072,1.56064291,3287.1,3286.8,4.56224]
[1633120222671,1.56064291,3287.1,3286.9,0.9504745]
[1633120225073,1.56064291,3287.1,3286.9,5.5129645]
[1633120225673,1.41064291,3287.1,3286.9,5.5129645]
[1633120226275,1.41064291,3287.1,3286.9,0.9504745]
[1633120227076,1.52938512,3287.1,3286.9,0.9504745]
[1633120227476,1.52938512,3287.1,3286.5,0.003]
[1633120228383,1.52938512,3287.1,3286.8,0.80948407]
[1633120229977,1.52938512,3287.1,3286.6,7.60485]
[1633120230986,1.52938512,3287.1,3286.7,0.95403383]
[1633120231180,1.52938512,3287.1,3286.7,5.51689383]
[1633120231980,2.52108644,3287.1,3286.7,4.56286]
[1633120232183,2.52108644,3287.1,3286.6,3.04189]
[1633120232382,2.52108644,3287.1,3286.8,0.16828956]
[1633120232383,2.40234423,3287.1,3286.8,0.16828956]
[1633120232581,1.41064291,3287.1,3286.8,0.16828956]
[1633120233781,0.94034767,3286.9,3286.8,0.16828956]
[1633120233982,8.50614507,3287.0,3286.8,0.16828956]
[1633120234684,0.9766528,3286.4,3285.9,0.003]
[1633120234885,0.181,3286.3,3285.9,0.003]
[1633120235286,5.45916527,3286.2,3285.0,0.009]
[1633120235483,1.03507584,3286.3,3286.0,0.003]
[1633120235884,1.03507584,3286.3,3285.8,0.003]
[1633120236091,5.59966584,3286.3,3285.8,0.003]
[1633120236484,5.76018407,3286.3,3285.8,0.003]
[1633120236884,1.19559407,3286.3,3285.8,0.003]
[1633120237088,0.9766528,3286.4,3285.8,0.003]
[1633120237886,1.1793198,3286.4,3285.9,0.08441046]
[1633120238087,1.1793198,3286.4,3285.9,0.03441046]
[1633120238286,1.1793198,3286.4,3286.0,0.003]
[1633120238691,0.80195166,3286.2,3286.0,0.003]
[1633120239288,1.1793198,3286.4,3286.0,0.003]
[1633120243798,1.1793198,3286.4,3286.2,0.93086409]
[1633120243994,1.1793198,3286.4,3286.2,5.49420409]
[1633120246196,1.1793198,3286.4,3286.2,0.93086409]
[1633120246595,1.1793198,3286.4,3286.0,0.80336014]
[1633120246796,1.1793198,3286.4,3286.2,2.703636]
[1633120246996,1.1793198,3286.4,3286.3,0.181]
[1633120247196,1.1793198,3286.4,3286.3,4.74372]
[1633120247801,1.1793198,3286.4,3285.5,0.003]
[1633120248198,1.1793198,3286.4,3285.4,0.055743]
[1633120248398,1.1793198,3286.4,3285.9,4.56384]
[1633120248700,2.10150995,3286.4,3285.9,4.56384]
[1633120248904,0.9766528,3286.4,3285.9,4.56384]
[1633120249101,0.9766528,3286.4,3285.6,0.05946029]
[1633120249301,0.022848,3286.2,3285.6,0.05946029]
[1633120249501,4.56553,3285.9,3285.6,0.05946029]
[1633120250105,1.82739364,3285.8,3285.6,0.05946029]
[1633120250901,4.56553,3285.7,3285.6,0.05946029]
[1633120251101,4.56553,3285.7,3285.2,0.003]
[1633120251102,0.20604496,3285.7,3285.2,0.003]
[1633120251305,10.572848,3285.3,3285.2,0.003]
[1633120251506,0.203848,3285.3,3285.0,0.006]
[1633120251710,0.97886104,3285.2,3284.0,0.012]
[1633120251902,0.181,3285.1,3284.1,0.2930738]
[1633120252103,0.95548094,3284.8,3284.2,0.29308778]
[1633120252303,0.181,3285.0,3284.2,0.30208778]
[1633120252502,0.181,3285.0,3284.4,0.059393]
[1633120252702,0.181,3285.0,3284.5,0.29301823]
[1633120252965,0.181,3285.4,3284.5,0.30201823]
[1633120253103,0.181,3285.4,3284.6,0.006]
[1633120253304,0.90146088,3285.1,3284.6,0.29892913]
[1633120253504,0.90146088,3285.1,3284.7,0.29296671]
[1633120253702,0.90146088,3285.1,3284.7,0.006]
[1633120253903,0.90146088,3285.1,3284.8,0.006]
[1633120254107,1.10697428,3285.0,3284.2,0.009]
[1633120254305,1.10697428,3285.0,3284.3,0.29303388]
[1633120254502,1.36407795,3285.0,3284.1,0.67724581]
[1633120254702,1.36707795,3285.0,3284.1,0.67724581]
[1633120255104,0.26010367,3285.0,3284.1,0.67724581]
[1633120255303,0.26010367,3285.0,3284.5,0.064092]
[1633120255702,0.26010367,3285.0,3284.1,0.67724581]
[1633120256102,0.76194639,3284.7,3284.1,0.67724581]
[1633120256504,0.76194639,3284.7,3283.9,4.56914]
[1633120256707,0.76194639,3284.7,3283.9,0.003]
[1633120256902,0.76194639,3284.7,3284.0,0.003]
[1633120257504,0.76194639,3284.7,3284.0,0.71167844]
[1633120257703,0.76194639,3284.7,3284.0,0.003]
[1633120257905,0.022848,3284.5,3284.0,0.003]
[1633120258104,0.181,3284.4,3283.9,0.003]
[1633120258505,4.56779,3284.3,3283.9,0.003]
[1633120258704,0.181,3284.2,3283.9,0.003]
[1633120259905,4.56696,3284.6,3283.9,0.003]
[1633120259906,0.27192279,3284.1,3284.0,0.02184569]
[1633120260304,0.27192279,3284.1,3284.0,0.02484569]
[1633120262108,1.56994249,3284.1,3284.0,0.02484569]
[1633120262907,2.38275197,3284.1,3284.0,0.02484569]
[1633120265507,2.38275197,3284.1,3284.0,0.003]
[1633120265508,2.11082918,3284.1,3284.0,0.003]
[1633120265908,2.11082918,3284.1,3283.9,0.003]
[1633120266707,4.56791,3284.0,3283.9,0.003]
[1633120266907,4.74891,3284.0,3283.9,0.003]
[1633120268509,0.181,3284.0,3283.9,0.003]
[1633120269510,4.7488,3284.0,3283.9,0.003]
[1633120270709,4.7488,3284.0,3283.7,0.47638978]
[1633120270973,5.02069856,3284.0,3283.9,0.02184636]
[1633120273715,0.27189856,3284.0,3283.9,1.31584636]
[1633120273981,0.27189856,3284.0,3283.9,0.07751236]
[1633120274916,0.27189856,3284.0,3283.9,1.37151236]
[1633120276316,0.003,3284.5,3283.9,1.37151236]
[1633120276513,0.003,3284.5,3284.2,1.294]
[1633120276715,0.003,3284.5,3283.9,0.055666]
[1633120277113,0.003,3284.5,3284.0,0.86133769]
[1633120277417,0.003,3284.5,3284.0,18.62133769]
[1633120277614,0.003,3284.5,3284.2,1.294]
[1633120277814,0.003,3284.5,3284.1,18.6731527]
[1633120278014,0.003,3284.5,3284.3,3.04366]
[1633120278215,0.003,3284.5,3284.4,23.894475]
[1633120278416,0.003,3284.5,3284.4,24.96247643]
[1633120278616,0.003,3284.5,3284.4,26.25647643]
[1633120279017,0.003,3284.5,3284.4,27.4168535]
[1633120279219,0.003,3284.5,3284.4,26.25647643]
[1633120279616,0.003,3285.5,3284.5,1.96841764]
[1633120279819,0.003,3285.5,3284.9,18.848913]
[1633120280023,0.003,3285.5,3284.9,43.20398641]
[1633120280218,0.003,3285.5,3285.4,12.779913]
[1633120280418,0.003,3285.5,3285.4,32.017213]
[1633120280617,0.003,3285.5,3285.4,33.59536213]
[1633120280820,0.003,3285.5,3285.4,40.09242318]
[1633120281018,0.003,3285.5,3285.4,41.38642318]
[1633120281219,0.003,3285.5,3285.4,45.94926318]
[1633120281418,0.003,3285.5,3285.4,33.38320213]
[1633120281619,0.003,3285.5,3285.4,33.74350213]
[1633120281818,0.003,3285.5,3285.4,13.761053]
[1633120282021,0.27526639,3285.5,3285.4,6.10933638]
[1633120282822,1.2565442,3285.5,3285.4,6.10933638]
[1633120284685,1.2565442,3285.5,3285.4,6.01389102]
[1633120286388,2.45062275,3285.5,3285.4,6.01389102]
[1633120287190,1.2565442,3285.5,3285.4,6.01389102]
[1633120287390,0.98427781,3285.5,3285.4,5.99205464]
[1633120289493,0.003,3285.5,3285.4,5.99205464]
[1633120292695,0.27526666,3285.5,3285.4,5.99205464]
[1633120292896,0.27526666,3285.5,3285.4,7.30789102]
[1633120293295,0.27526666,3285.5,3285.4,10.57769102]
[1633120293696,0.27526666,3285.5,3285.4,11.5238089]
[1633120293901,0.27526666,3285.5,3285.4,6.9600089]
[1633120294099,0.27526666,3285.5,3285.4,6.01389102]
[1633120295701,0.27526666,3285.5,3285.4,6.30178795]
[1633120296499,0.27526666,3285.5,3285.4,1.30178795]
[1633120296901,0.27526666,3285.5,3285.4,20.35578795]
[1633120297099,0.27526666,3285.5,3285.4,19.06178795]
[1633120297500,0.26477806,3285.5,3285.4,19.06178795]
[1633120297899,0.26477806,3285.5,3285.4,20.35578795]
[1633120298100,0.26477806,3285.5,3285.4,20.33395157]
[1633120298304,2.46,3285.9,3285.4,20.33395157]
[1633120298501,2.46,3285.9,3285.8,0.71093291]
[1633120298900,2.46,3285.9,3285.7,17.76]
[1633120299501,2.46,3285.9,3285.5,0.181]
[1633120299901,2.46,3285.9,3285.6,23.22504166]
[1633120300107,2.46,3285.9,3285.6,5.46504166]
[1633120300905,2.36,3285.9,3285.6,23.22504166]
[1633120302103,0.003,3286.0,3285.6,23.22504166]
[1633120302502,0.003,3286.0,3285.8,0.059144]
[1633120302703,0.003,3286.0,3285.8,18.7317322]
[1633120303506,0.27164508,3286.0,3285.8,18.7317322]
[1633120303902,0.003,3286.0,3285.9,4.58496306]
[1633120304104,0.003,3286.0,3285.9,22.34496306]
[1633120304704,0.003,3286.0,3285.9,22.63620203]
[1633120305105,0.003,3286.0,3285.9,18.07307203]
[1633120305507,0.003,3286.0,3285.9,17.78183306]
[1633120307904,0.003,3286.0,3285.9,22.34488306]
[1633120308904,0.003,3286.0,3285.9,22.32305]